Cogmind - Beta 14 @@@ ROGUE MODE // 2025.02.28 @ 17:18:40 Player: toydarian Result: Destroyed by G-34 Mercenary with Small Laser Performance ------------- Evolutions (1) 500 Regions Visited (2) 400 Robots Destroyed (38) 190 Value Destroyed (940) 940 Prototype IDs (0) 0 Alien Tech Used (0) 0 Bonus (0) 0 TOTAL SCORE: 2030 Bonus ------- None Cogmind --------- Core Integrity 0/400 Matter 280/300 Energy 100/100 System Corruption 8% Temperature Cool (6) Movement Treading (240) Ox1 Location -9/Materials Parts ------- > --- POWER (1) -------- (None) > --- PROPULSION (2) --- Light Treads Light Treads > --- UTILITY (3) ------ High-capacity Storage Unit > --- WEAPON (3) ------- Katana > --- INVENTORY (20) --- Wheel Wheel Wheel Wheel Compact Wheel High-capacity Matter Pod (200) Visual Processing Unit Sensor Array Signal Interpreter Seismic Detector Targeting Computer Grenade Launcher Plasma Cutter Peak State ------------ > --- POWER ------------ Improved Ion Engine > --- PROPULSION ------- Wheel Wheel > --- UTILITY ---------- High-capacity Storage Unit Seismic Detector Light Armor Plating > --- WEAPON ----------- Light Assault Rifle Light Assault Rifle Plasma Cutter > --- INVENTORY -------- Light Ion Engine Light Treads Light Treads Light Treads Light Treads Wheel Wheel Wheel Compact Wheel High-capacity Matter Pod Visual Processing Unit Sensor Array Sensor Array Signal Interpreter Targeting Computer Propulsion Shielding Medium Laser Medium Laser Light Assault Rifle Grenade Launcher [Rating: 13] Favorites ----------- Power Light Ion Engine Engine Light Ion Engine Propulsion Wheel Treads Light Treads Wheel Wheel Utility Seismic Detector Device Seismic Detector Storage High-capacity Storage Unit Protection Light Armor Plating Weapon Medium Laser Energy Gun Medium Laser Ballistic Gun Light Assault Rifle Launcher Grenade Launcher Special Weapon Plasma Cutter Slashing Weapon Katana Build | -11 -10 -9 ------- Run | Yrd Mat Mat Slots Evolved 2 | . . 2 Power . | . . . Propulsion . | . . . Utility 1 | . . 1 Weapon 1 | . . 1 Parts Attached 46 | 7 7 32 Power 4 | 1 . 3 Engine 4 | 1 . 3 Core . | . . . Reactor . | . . . Propulsion 13 | 2 3 8 Treads 4 | . . 4 Leg . | . . . Wheel 9 | 2 3 4 Hover . | . . . Flight . | . . . Utility 13 | 2 2 9 Device 5 | 1 1 3 Storage 2 | 1 1 . Processor . | . . . Hackware . | . . . Protection 6 | . . 6 Artifact . | . . . Weapon 16 | 2 2 12 Energy Gun 5 | 1 1 3 Energy Cannon . | . . . Ballistic Gun 8 | 1 . 7 Ballistic Cannon . | . . . Launcher 1 | . 1 . Special Weapon 1 | . . 1 Impact Weapon . | . . . Slashing Weapon 1 | . . 1 Piercing Weapon . | . . . Special Melee Weapon . | . . . Unidentified Prototypes . | . . . Parts Lost 17 | . 1 16 Power 3 | . . 3 Propulsion 3 | . . 3 Utility 5 | . 1 4 Weapon 6 | . . 6 Highest Loss Streak 12 | . 1 12 To Critical Strikes . | . . . Average Slot Usage (%) 95 | . 98 93 Engine 11 | . 14 9 Treads 1 | . . 1 Wheel 22 | . 28 19 Device 10 | . 12 9 Storage 12 | . 14 11 Protection 6 | . . 10 Energy Gun 11 | . 13 10 Ballistic Gun 17 | . 14 18 Peak Build Rating 13 | 7 8 13 Average Rating 9 | 6 7 11 On Entrance 5 | . 7 8 Naked Turns . | . . . Heaviest Build 59 | 13 48 59 Greatest Support 40 | 20 26 40 Greatest Overweight (x) 5 | . 2 5 Average Overweight (x) 1 | . . 2 Largest Inventory Capacity 20 | 8 20 20 Average Capacity 16 | 7 12 20 Most Carried 20 | 8 14 20 Average Carried 14 | 6 10 18 Final Capacity 20 | 8 20 20 Final Carried 14 | 8 14 13 Class Distribution -------------------- 54% | Mutant 39% | Scavenger-Tank 5% | Skirmisher Dominant Class ---------------- Mutant | -10/Materials Scavenger-Tank | -9/Materials Resources | -11 -10 -9 ----------- Run | Yrd Mat Mat Matter Collected 1226 | 400 393 433 Remotely . | . . . Salvage Created 1315 | 201 350 764 Parts 89 | 23 22 44 Haulers Intercepted . | . . . Recyclers Shooed 1 | . 1 . Parts Field Recycled . | . . . Retrieved Matter . | . . . Parts Self-Destructed . | . . . Prevented . | . . . Kills | -11 -10 -9 ------- Run | Yrd Mat Mat Combat Hostiles Destroyed 23 | . 5 18 Melee 5 | . . 5 Guns 15 | . 2 13 AOE 3 | . 3 . Classes Destroyed 10 | 3 3 4 Worker 2 | 2 . . Tunneler 6 | 5 1 . Recycler 2 | 1 1 . Operator 1 | . 1 . Watcher 4 | . 2 2 Swarmer 4 | . . 4 Grunt 13 | . 5 8 Brawler 1 | . . 1 Duelist 1 | . . 1 Sentry 4 | . . 4 Best Kill Streak 6 | 4 4 6 Combat Bots Only 6 | . 3 6 Max Kills in Single Turn 3 | 2 3 1 Gunslinging . | . . . Exploded 3 | . 3 . Melee 1 | . . 1 Uniques/NPCs Destroyed . | . . . Combat | -11 -10 -9 -------- Run | Yrd Mat Mat Hostile Shots Fired 220 | . 24 196 Missed 53 | . 7 46 Damage Taken 2214 | . 231 1983 Core 449 | . 39 410 Absorbed by Shields . | . . . Redirected to Shielding 44 | . . 44 Core Remaining (%) 92 | 100 84 . Volleys Fired 91 | 18 29 44 Largest 3 | 2 2 3 Hottest 120 | 70 70 120 Shots Fired 210 | 36 55 119 Gun 208 | 36 54 118 Cannon . | . . . Launcher 1 | . 1 . Special 1 | . . 1 Kinetic 122 | 18 29 75 Thermal 87 | 18 25 44 Explosive 1 | . 1 . Electromagnetic . | . . . Robot Hit Streak 10 | 4 4 10 Robot Miss Streak 4 | 3 3 4 Penetration Max . | . . . Secondary Targets 3 | . 1 2 Max Gunslinging Chain 1 | . 1 1 Shots Hit Robots 128 | 17 25 86 Core Hits 61 | 9 19 33 Critical Kills . | . . . Critical Parts Destroyed . | . . . Critical Strikes 6 | . 2 4 Burn 6 | . 2 4 Melee Attacks 13 | . . 13 Impact . | . . . Slashing 13 | . . 13 Piercing . | . . . Sneak Attacks . | . . . Combat Hostiles . | . . . Follow-up Attacks . | . . . Damage Inflicted 1792 | 223 438 1131 Guns 1422 | 223 323 876 Cannons . | . . . Explosions 115 | . 115 . Melee 255 | . . 255 Ramming . | . . . Kinetic 724 | 96 150 478 Thermal 698 | 127 173 398 Explosive 115 | . 115 . Electromagnetic . | . . . Impact . | . . . Slashing 255 | . . 255 Piercing . | . . . Highest Corruption 8 | . 4 8 Average Corruption 4 | . 3 8 Corruption Purged . | . . . Corruption Blocked . | . . . Effects 7 | . 6 1 Matter Fused 1 | . 1 . Energy Discharges 2 | . 1 1 Data Loss (minor) 2 | . 2 . Weapon Failures 2 | . 2 . Overload Shots . | . . . Overflow Damage 13 | . . 13 Projectiles . | . . . Explosions . | . . . Melee 13 | . . 13 Knockbacks . | . . . Impact . | . . . Kinetic . | . . . Secondary . | . . . Self-Inflicted Damage . | . . . Shots . | . . . Rammed . | . . . Targets Rammed . | . . . Kicked . | . . . Crushed . | . . . Highest Temperature 189 | 36 97 189 Average Temperature 47 | 11 35 63 Received Heat Transfer 1134 | . 153 981 Siege Activations . | . . . Robots Corrupted . | . . . Combat Hostiles . | . . . Parts Fried . | . . . Impact Corruptions . | . . . Robots Melted . | . . . Combat Hostiles . | . . . Parts Melted 2 | . . 2 Heat Transferred 2516 | 370 666 1480 Parts Sabotaged . | . . . Parts Stolen . | . . . Parts Stripped . | . . . Power Chain Reactions . | . . . Alert | -11 -10 -9 ------- Run | Yrd Mat Mat Peak Influence 299 | 40 117 299 Initial 49 | . 26 49 Average 115 | 21 65 162 Maximum Alert Level 1 | . . 1 Low Security (%) 80 | 100 100 65 Level 1 19 | . . 34 Level 2 . | . . . Level 3 . | . . . Level 4 . | . . . Level 5 . | . . . High Security . | . . . Max Security . | . . . Squads Dispatched 3 | . 2 1 Investigation . | . . . Extermination . | . . . Reinforcement 3 | . 2 1 Assault . | . . . Garrison . | . . . Intercept . | . . . Searches Triggered . | . . . Construction Impeded . | . . . Haulers Reinforced . | . . . Active Scanning Responses . | . . . Cargo Convoy Interrupts . | . . . Stealth | -11 -10 -9 --------- Run | Yrd Mat Mat Distress Signals 4 | . . 4 Communications Jammed . | . . . Distress Signals . | . . . Times Spotted 48 | . 14 34 Peak Tracking Total 9 | . 3 9 Tactical Retreats 3 | . . 3 Traps | -11 -10 -9 ------- Run | Yrd Mat Mat Traps Triggered 2 | . 2 . Indirectly . | . . . Trap Hack Attempts . | . . . Triggered . | . . . Disarmed . | . . . Reprogrammed . | . . . Reused . | . . . Traps Extracted . | . . . Installed . | . . . Triggered . | . . . Machines | -11 -10 -9 ---------- Run | Yrd Mat Mat Machines Disabled 2 | . . 2 Max in Single Turn 1 | . . 1 Machines Repaired . | . . . Machines Dismantled 1 | . . 1 Machines Sabotaged . | . . . Overloaded Fab Kills . | . . . Hacking | -11 -10 -9 --------- Run | Yrd Mat Mat Machines Accessed 6 | . 4 2 Terminals 6 | . 4 2 Fabricators . | . . . Repair Stations . | . . . Recycling Units . | . . . Scanalyzers . | . . . Garrison Access . | . . . Total Hacks 18 | . 11 7 Successful 8 | . 5 3 Failed 10 | . 6 4 Catastrophic 4 | . 2 2 Database Lockouts . | . . . Manual 18 | . 11 7 Terminals 18 | . 11 7 Fabricators . | . . . Repair Stations . | . . . Recycling Units . | . . . Scanalyzers . | . . . Garrison Access . | . . . Terminal Hacks 2 | . 1 1 Branch Access Points 1 | . 1 . Alert Level 1 | . . 1 Fabricator Hacks . | . . . Repair Station Hacks . | . . . Recycling Unit Hacks . | . . . Scanalyzer . | . . . Garrison Access Hacks . | . . . Unauthorized Hacks 6 | . 4 2 Terminals 6 | . 4 2 Botnet 6 | . 4 2 Fabricators . | . . . Repair Stations . | . . . Recycling Units . | . . . Scanalyzers . | . . . Garrison Access . | . . . Data Cores Recovered . | . . . Used . | . . . Hacking Detections 5 | . 3 2 Full Trace Events . | . . . Feedback Events . | . . . Feedback Blocked . | . . . Robot Schematics Acquired . | . . . Robots Built . | . . . Authchips . | . . . Time . | . . . Total Robot Build Rating . | . . . Part Schematics Acquired . | . . . Parts Built . | . . . Authchips . | . . . Time . | . . . Total Part Build Rating . | . . . Parts Repaired . | . . . Time . | . . . Parts Recycled . | . . . Recycled Matter . | . . . Retrieved Matter . | . . . Retrieved Components . | . . . Parts Scanalyzed . | . . . Part Schematics Acquired . | . . . Parts Damaged . | . . . Bothacking | -11 -10 -9 ------------ Run | Yrd Mat Mat Used RIF Installer . | . . . Robots Hacked . | . . . Non-combat . | . . . Combat . | . . . Robot Hacks Applied . | . . . Relay Couplers Released . | . . . Fabnet Peak Effective % . | . . . Robots Rewired . | . . . Allies Hacked . | . . . Hacks Repelled . | . . . Allies | -11 -10 -9 -------- Run | Yrd Mat Mat Total Allies . | . . . Largest Group . | . . . Highest-Rated Group . | . . . Highest-Rated Ally . | . . . Total Orders . | . . . Ally Attacks . | . . . Total Damage . | . . . Kills . | . . . Allies Corrupted . | . . . Allies Melted . | . . . Intel | -11 -10 -9 ------- Run | Yrd Mat Mat Robot Analysis Total . | . . . Derelict Logs Recovered . | . . . Drone Launches . | . . . Drone Recoveries . | . . . Exploration | -11 -10 -9 ------------- Run | Yrd Mat Mat Turns Passed 1602 | 203 483 916 Spaces Moved 1008 | 155 360 493 Core 5 | 5 . . Treads 11 | . . 11 Legs . | . . . Wheels 992 | 150 360 482 Hover . | . . . Flight . | . . . Fastest Speed 50 | 50 80 110 Average Speed 103 | 79 94 117 Slowest Speed 320 | 80 110 320 Overloaded Moves . | . . . Propulsion Burnouts . | . . . Robots Hopped . | . . . Cave-ins Triggered . | . . . Exploration Rate (%) 34 | 4 59 39 Regions Visited 2 Branch Regions . Pre-discovered Areas . | . . . Known Exits Taken . | . . . Unknown Exits Taken 2 | 1 1 . Scrap Searched . | . . . Spaces Dug . | . . . Terrain Destroyed 8 | . 8 . Melee . | . . . Projectile . | . . . AOE 8 | . 8 . Terrain Rammed . | . . . Walls Destroyed . | . . . Machines Disabled . | . . . Actions | -11 -10 -9 --------- Run | Yrd Mat Mat Total 1362 | 198 450 714 Wait 146 | . 33 113 Move 1006 | 154 359 493 Hop . | . . . Pick Up 33 | 14 12 7 Fast Attach 13 | 6 1 6 Attach 11 | 1 . 10 Detach 2 | . . 2 Swap 22 | . 6 16 Drop 22 | 5 10 7 Fire 91 | 18 29 44 Melee 13 | . . 13 Ram . | . . . Kick . | . . . Crush . | . . . Escape Stasis . | . . . Rewire . | . . . Trap . | . . . Miscellaneous 3 | . . 3 Route ------- -11/Scrapyard -10/Materials (discovered 3 exits: *Mat x2 / Min) -9/Materials History --------- Turn | Location | Event 11 | -11/Scrapyard | Discovered new exit (range 16) 204 | -11/Scrapyard | Entered Materials 304 | -10/Materials | Build established: Mutant 382 | -10/Materials | Discovered new exit (range 4) 618 | -10/Materials | Identified exit to Mines 658 | -10/Materials | Discovered new exit (range 15) 687 | -10/Materials | Entered another Materials area 687 | -9/Materials | Evolved 2 slots: Utility x1, Weapon x1 1126 | -9/Materials | Build established: Scavenger-Tank 1552 | -9/Materials | Core integrity fell below 50% 1577 | -9/Materials | Core integrity fell below 20% 1602 | -9/Materials | Lost 12 parts (2p2n3u5w) 1603 | -9/Materials | Destroyed by G-34 Mercenary with Small Laser Last Messages --------------- 01562_ Destroyed Aluminum Leg. 01562_ Destroyed Sml. Laser. 01562_ G-34 Mercenary destroyed. 01563_ K-01 Serf collects debris. 01565_ Lgt. Assault Rifle destroyed. 01566_ Lgt. Ion Engine destroyed. 01567_ K-01 Serf collects debris. 01571_ Lgt. Treads destroyed. 01572_ K-01 Serf collects debris. 01578_ K-01 Serf cleans the Terminal. 01578_ K-01 Serf collects debris. 01584_ K-01 Serf cleans the Terminal. 01585_ Critical hit (Burn: +37). 01586_ Destroyed Lgt. Nuclear Core. 01587_ System corrupted: Energy discharge (-18). 01587_ K-01 Serf collects debris. 01591_ Critical hit (Burn: +37). 01591_ K-01 Serf collects debris. 01596_ G-47 Trooper destroyed. 01596_ K-01 Serf collects debris. Map ----- +----------------------------------------------------+ | ??????????????????????????????????????????????? | | ??????????????????????????????????????????????? | | ??????????????????????????????????????????????? | | ??????????????????????????????????????????????? | | ??????????????????????????????????????????????? | | ??????????????????????????????????????????????? | | ??????????????????????????????????????????????? | | ??????????????????????????????????????????????? | | ??????????????????????????????????????????????? | | ??????????????????????????????????????????????? | | ??????????????????????????????????????????????? | | ??????????????????????????????????????????????? | | ??????????????????????????????????????????????? | | ??????????????????????????????????????????????? | | ?????????????????????????## ??????????????????? | | ????????????????????????? # ??????????????????? | | ????????????????????????" # ??????????????????? | | ????????????????????????" # ??????????????????? | | ????????????????????????" # ""????????????????? | | ???????????????????????? # ""????????????????? | | ??????????????????????? # ""????????????????? | | ???????????#??????????? # ""????????????????? | | ???????????# ????????? # ? #?????????????? | | ??????????## ?????###/### ???????????????? | | ??????????# ##### u ##+#########+######?? | | ????????###% k @g% ?? | | ????? T %[=*T!= a % ?? | | ?????????## r kk/g%% ?? | | ??????????# ##### %==##+#########+## #?? | | ??????????###+??????####### #??????# #?? | | ??????????????????????????# """ ##?????# #?? | | ??????????????????????????#! """ #?????# #?? | | ??????????????????????????# """ ##?????# #?? | | ??????????????????????????# #??????# #?? | | ??????????????????????????# """ #??????# ### | | ??????????????????????????# """ #??????# | | ??????????????????????????# *"" #??????# | | ??????????????????????????# !% #??????# | | ??????????????????????????#] """ #??????#### | | ??????????????????????????# """ #?????????# | | ??????????????????????????# """ #?????????# | | ??????????????????????????#! === #?????????# | | ??????????????????????????####+###?????????# | | ?????????????????????????????#%#???????????# | | ?????????????????????????????#[#???????????# | | ?????????????????????????????# #???????????# | | ?????????????????????????????# #???????????# | | ?????????????????????????????# #???????????# | | ?????????????????????????????# #???????????# | | ??????????????????##########?# #???????????# | +----------------------------------------------------+ Best States ------------- Heat Dissipation 28 Energy Generation 12 Energy Capacity 265 Matter Stores 300 Matter Capacity 300 Sight Range 16 Robot Scan Range 14 Terrain Scan Density 10 Armor Coverage 300 Propulsion Shielding 33 Evasion (%) 44 Recoil Reduction 2 Item Schematics ----------------- None Robot Schematics ------------------ None Fabricated ------------ Nothing Alien Tech Used ----------------- None Achievements -------------- None Challenges ------------ None Game ------ Seed FrostVortexMicrothruster Manual? 0 Play Time 00:21:20 Cumulative 61.3 hours Start 2025.02.28 @ 17:00:45 End 2025.02.28 @ 17:18:40 Sessions 1 Manual Loads 0 Difficulty Rogue Special Mode None Game No. 87 Rogue 80 Adventurer 0 Explorer 7 Win Type - Total 2 Types 2/0/0/0/0/0/0/0/0 Lore% 19 Gallery% 33 Achievement% 32 Wizard Run 0 Options --------- Layout 0 ASCII 0 Keyboard 0 Movement Mouse Keybinds 0 Fullscreen 1 Font 24/Smallcaps Map View 76x50 Zoom Use 0% Tactical HUD 1 Map Filters NONE Filters NONE Steam 1 RUN: 0ce5e3ca-9b63-47e0-a02a-2e0daf1b78fd